[Event "44th BAN-ch OMICON 2018"]
[Site "Dhaka"]
[Date "2018.11.27"]
[Round "4"]
[White "Ahmed, Sk. Nasir"]
[Black "Hossain, Showkat Pollab"]
[Result "0-1"]
[ECO "B01"]
[WhiteElo "2119"]
[BlackElo "2119"]
[Annotator "NA"]
[PlyCount "100"]
[EventDate "2018.11.24"]
[EventType "swiss"]
[EventCountry "BAN"]
[SourceTitle "playchess.com"]
[Source "ChessBase"]
[SourceQuality "1"]
[TimeControl "40/5400+30:1800+30"]

{[%evp 8,98,69,64,78,58,50,58,68,34,68,48,59,46,50,30,64,32767,32767,32767,28,27,64,0,64,52,99,93,98,121,101,99,129,75,118,59,150,123,115,64,47,-29,-18,-189,-203,-198,-214,-206,-109,-120,-122,-119,-116,32767,32767,-162,-165,-221,-179,-179,32767,32767,32767,32767,-391,-451,32767,32767,32767,32767,-708,-679,-715,-704,-966,32767,32767,32767,32767,-1168,32767,32767,32767,32767,32767,32767,-29987,-29987,-29988,-29989,-29990,-29973,-29991]} 1. e4 {[%emt 0:00:00]} d5 {[%emt 0:19:54]} 2. exd5 {[%emt 0:00:00]} Qxd5 {[%emt 0:00:08]} 3. Nf3 {[%emt 0:01:15]} Nf6 {[%emt 0:02:20]} 4. d4 {[%emt 0:00:23]} c6 {[%emt 0:01:02]} 5. c4 {[%emt 0:03:50] B01: Scandinavian Defence} (5. Be2 Bg4 6. h3 Bxf3 7. Bxf3 Qa5+ 8. c3 e6 9. Bf4 Qa6 10. Qb3 Nbd7 11. Nd2 Nd5 12. Bg3 Be7 13. Nc4 {1-0 (48) Giri,A (2752)-Kramnik,V (2783) Flor & Fjaere 2014}) 5... Qd6 {[%emt 0:04:59]} 6. h3 {[%emt 0:04:48]} Bf5 {[%emt 0:00:36]} 7. Nc3 {[%emt 0:00:30]} Nbd7 {[%emt 0:01:31]} 8. Be3 {[%emt 0:04:41]} e6 {[%emt 0:02:50]} 9. Nh4 $146 {[%emt 0:03:17]} ({Predecessor:} 9. Be2 h6 10. Qd2 Qc7 11. Bd3 Bxd3 12. Qxd3 {0-1 (45) Chavez,B (1730)-Duque,M (2017) Cali 2017}) 9... Bg6 {[%emt 0:00:45]} 10. Nxg6 {[%emt 0:00:15]} hxg6 {[%emt 0:00:03]} 11. Qd2 {[%emt 0:01:20]} O-O-O {[%emt 0:03:23]} 12. O-O-O {[%emt 0:07:41]} Qc7 {[%emt 0:02:56]} 13. Kb1 {[%emt 0:04:18]} Bb4 {[%emt 0:01:07]} 14. Qc2 {[%emt 0:00:59]} e5 {[%emt 0:06:35]} 15. dxe5 {[%emt 0:09:22]} Nxe5 {[%emt 0:00:49]} (15... Qxe5 $11 16. Bd4 Qa5) 16. Be2 {[%emt 0:00:36]} Qa5 {[%emt 0:08:03]} 17. Na4 {[%emt 0:08:05]} Be7 {[%emt 0:04:37]} 18. a3 {[%emt 0:05:23]} c5 {[%emt 0:06:01]} 19. Nc3 {[%emt 0:04:54]} Nc6 {[%emt 0:02:17]} 20. Nd5 {[%emt 0:12:35]} Bd6 {[%emt 0:00:35]} 21. Rd3 {[%emt 0:02:45]} Kb8 {[%emt 0:02:13]} (21... Be5 $1 $14) 22. Rhd1 {[%emt 0:02:11]} Be5 {[%emt 0:01:26]} 23. f4 {[%emt 0:08:57]} ({White should try} 23. Bf3 $16) 23... Bd4 {[%emt 0:02:28]} 24. b4 {[%emt 0:00:40]} (24. Bd2 $14 Qa6 25. Bf3) 24... Nxb4 $1 {[%emt 0:03:16]} 25. Bd2 $2 {[%emt 0:12:39]} (25. Nxb4 $11 Bxe3 26. Nc6+ bxc6 27. Rxe3) 25... Nfxd5 {[%emt 0:01:45]} ({But not} 25... Nxc2 26. Bxa5 Nxd5 27. Bxd8 $17) 26. cxd5 {[%emt 0:00:07]} Nxc2 {[%emt 0:04:13]} 27. Bxa5 {[%emt 0:00:02] [#]} Ne3 {[%emt 0:00:34]} (27... Rde8 $1 $19 {[%cal Re8e2]} 28. Bf3 Ne3 29. Rxd4 cxd4 30. Rxd4 Nf5) 28. Rxe3 {[%emt 0:01:51]} Bxe3 {[%emt 0:00:16]} 29. Bxd8 {[%emt 0:00:02]} Rxd8 {[%emt 0:00:09]} 30. g3 {[%emt 0:00:26]} Kc7 {[%emt 0:02:02]} 31. Bc4 {[%emt 0:00:40]} Kd6 {[%emt 0:00:16]} 32. Rf1 {[%emt 0:00:27] [#]} (32. Kc2 $17 {keeps fighting.}) 32... b5 $1 {[%emt 0:00:12]} 33. Rf3 {[%emt 0:00:28]} bxc4 {[%emt 0:00:59]} 34. Rxe3 {[%emt 0:00:01]} Rb8+ {[%emt 0:00:01]} 35. Ka2 {[%emt 0:01:21]} Rb3 {[%emt 0:00:19]} 36. Re8 {[%emt 0:00:01]} Kxd5 {[%emt 0:02:34]} 37. Rd8+ {[%emt 0:00:38]} Ke4 {[%emt 0:00:36]} 38. Rc8 {[%emt 0:00:01]} Rb7 {[%emt 0:01:53]} 39. Rxc5 {[%emt 0:00:12]} Kd4 {[%emt 0:00:59]} 40. Rc8 {[%emt 0:00:00]} c3 {[%emt 0:00:00]} 41. a4 {[%emt 0:03:03]} Rb4 {[%emt 0:04:26]} 42. Ka3 {[%emt 0:01:05]} a5 {[%emt 0:01:09]} 43. Rd8+ {[%emt 0:01:10]} Ke3 {[%emt 0:00:23]} 44. Rc8 {[%emt 0:00:10]} Kd3 {[%emt 0:00:16]} 45. Rd8+ {[%emt 0:00:02]} Rd4 {[%emt 0:00:29]} 46. Rc8 {[%emt 0:00:02]} c2 {[%emt 0:01:29]} 47. Kb2 {[%emt 0:00:05]} Rb4+ {[%emt 0:00:36]} 48. Ka2 {[%emt 0:00:04]} Rxa4+ {[%emt 0:01:27]} 49. Kb2 {[%emt 0:00:03]} Rb4+ {[%emt 0:00:09]} 50. Ka2 {[%emt 0:00:02]} Rb1 {[%emt 0:00:43]} 0-1

[Event "44th BAN-ch OMICON 2018"]
[Site "Dhaka"]
[Date "2018.11.27"]
[Round "4"]
[White "Saiful Islam, Chowdhury"]
[Black "Rahman, Taibur"]
[Result "1-0"]
[ECO "B32"]
[WhiteElo "2110"]
[BlackElo "2239"]
[Annotator "ChessBase"]
[PlyCount "79"]
[EventDate "2018.11.24"]
[EventType "swiss"]
[EventCountry "BAN"]
[SourceTitle "playchess.com"]
[Source "ChessBase"]
[SourceQuality "1"]
[TimeControl "40/5400+30:1800+30"]

1. e4 {[%emt 0:00:00]} c5 {[%emt 0:01:03]} 2. Nf3 {[%emt 0:00:18]} Nc6 {[%emt 0:00:05]} 3. d4 {[%emt 0:00:35]} cxd4 {[%emt 0:00:05]} 4. Nxd4 {[%emt 0:00:08]} e5 {[%emt 0:00:03]} 5. Nb5 {[%emt 0:04:57]} d6 {[%emt 0:00:12]} 6. c4 {[%emt 0:00:19]} Be7 {[%emt 0:00:09]} 7. N1c3 {[%emt 0:00:22]} a6 {[%emt 0:00:05]} 8. Na3 {[%emt 0:00:08]} f5 {[%emt 0:01:29]} 9. Bd3 {[%emt 0:02:28]} f4 {[%emt 0:00:10]} 10. Bd2 {[%emt 0:01:49]} Nf6 {[%emt 0:01:00]} 11. Nd5 {[%emt 0:00:11]} O-O {[%emt 0:01:20]} 12. Bc3 {[%emt 0:00:23]} Kh8 {[%emt 0:03:35]} 13. Qd2 {[%emt 0:00:41]} Be6 {[%emt 0:01:52]} 14. f3 {[%emt 0:01:12]} Rc8 {[%emt 0:01:24]} 15. O-O-O {[%emt 0:02:42]} b5 {[%emt 0:02:41]} 16. Kb1 {[%emt 0:03:23]} Bxd5 {[%emt 0:23:05]} 17. exd5 {[%emt 0:03:27]} bxc4 {[%emt 0:01:48]} 18. Bxc4 {[%emt 0:08:28]} Nb8 {[%emt 0:04:35]} 19. g3 {[%emt 0:02:18]} Nfd7 {[%emt 0:02:44]} 20. Bb3 {[%emt 0:01:28]} Nc5 {[%emt 0:05:25]} 21. Bc2 {[%emt 0:00:18]} Qe8 {[%emt 0:03:53]} 22. Rhg1 {[%emt 0:01:19]} Bf6 {[%emt 0:10:15]} 23. gxf4 {[%emt 0:12:52]} exf4 {[%emt 0:19:32]} 24. Qxf4 {[%emt 0:04:03]} Bxc3 {[%emt 0:00:14]} 25. Qh4 {[%emt 0:00:17]} h6 {[%emt 0:00:09]} 26. bxc3 {[%emt 0:00:11]} Qe5 {[%emt 0:01:49]} 27. Rg6 {[%emt 0:06:54]} Rc7 {[%emt 0:07:40]} 28. Nc4 {[%emt 0:23:13]} Rb7+ {[%emt 0:01:35]} 29. Kc1 {[%emt 0:00:12]} Qf4+ {[%emt 0:05:08]} 30. Qxf4 {[%emt 0:00:25]} Rxf4 {[%emt 0:00:01]} 31. Re1 {[%emt 0:00:30]} Nbd7 {[%emt 0:01:39]} 32. Nxd6 {[%emt 0:01:15]} Rb8 {[%emt 0:00:39]} 33. Re7 {[%emt 0:00:12]} Rf6 {[%emt 0:00:29]} 34. Nf7+ {[%emt 0:01:38]} Kg8 {[%emt 0:00:36]} 35. Nxh6+ {[%emt 0:00:27]} Kf8 {[%emt 0:00:01]} 36. Rexg7 {[%emt 0:00:32]} Rxg6 {[%emt 0:00:29]} 37. Rxg6 {[%emt 0:00:18]} Rb5 {[%emt 0:00:40]} 38. d6 {[%emt 0:00:42]} Ke8 {[%emt 0:00:34]} 39. Rg8+ {[%emt 0:00:37]} Nf8 {[%emt 0:00:00]} 40. Bg6+ {[%emt 0:00:14]} 1-0

[Event "44th BAN-ch OMICON 2018"]
[Site "Dhaka"]
[Date "2018.11.27"]
[Round "4"]
[White "Nayem, Haque"]
[Black "Rahman, Syed Mahfuzur"]
[Result "1/2-1/2"]
[ECO "B31"]
[WhiteElo "2074"]
[BlackElo "2224"]
[Annotator "ChessBase"]
[PlyCount "123"]
[EventDate "2018.11.24"]
[EventType "swiss"]
[EventCountry "BAN"]
[SourceTitle "playchess.com"]
[Source "ChessBase"]
[SourceQuality "1"]
[TimeControl "40/5400+30:1800+30"]

1. e4 {[%emt 0:00:00]} c5 {[%emt 0:02:00]} 2. Nf3 {[%emt 0:00:00]} Nc6 {[%emt 0:01:44]} 3. Bb5 {[%emt 0:00:19]} g6 {[%emt 0:00:31]} 4. d3 {[%emt 0:00:35]} Qa5+ {[%emt 0:01:25]} 5. Nc3 {[%emt 0:00:12]} Nd4 {[%emt 0:03:45]} 6. Bc4 {[%emt 0:11:12]} Bg7 {[%emt 0:04:23]} 7. Bd2 {[%emt 0:01:20]} e6 {[%emt 0:07:26]} 8. Nb5 {[%emt 0:13:23]} Qb6 {[%emt 0:02:47]} 9. Nfxd4 {[%emt 0:00:13]} cxd4 {[%emt 0:00:44]} 10. Bb4 {[%emt 0:12:53]} Be5 {[%emt 0:03:17]} 11. f4 {[%emt 0:09:59]} Bxf4 {[%emt 0:07:25]} 12. Qf3 {[%emt 0:00:10]} Be5 {[%emt 0:02:26]} 13. O-O {[%emt 0:00:25]} f6 {[%emt 0:00:42]} 14. a4 {[%emt 0:04:19]} a5 {[%emt 0:24:02]} 15. Ba3 {[%emt 0:00:33]} Ne7 {[%emt 0:01:17]} 16. Kh1 {[%emt 0:04:48]} Rf8 {[%emt 0:04:39]} 17. c3 {[%emt 0:00:44]} dxc3 {[%emt 0:06:33]} 18. bxc3 {[%emt 0:00:37]} Qc6 {[%emt 0:01:19]} 19. Bb3 {[%emt 0:02:00]} Bb8 {[%emt 0:13:29]} 20. d4 {[%emt 0:02:33]} e5 {[%emt 0:02:04]} 21. d5 {[%emt 0:17:42]} Qb6 {[%emt 0:00:08]} 22. c4 {[%emt 0:00:16]} d6 {[%emt 0:01:52]} 23. Rac1 {[%emt 0:00:57]} f5 {[%emt 0:02:08]} 24. Qc3 {[%emt 0:12:06]} Bd7 {[%emt 0:02:10]} 25. c5 {[%emt 0:01:32]} dxc5 {[%emt 0:00:10]} 26. d6 {[%emt 0:01:11]} Bxd6 {[%emt 0:00:43]} 27. Nxd6+ {[%emt 0:00:39]} Qxd6 {[%emt 0:00:04]} 28. Bxc5 {[%emt 0:00:15]} Qf6 {[%emt 0:00:22]} 29. exf5 {[%emt 0:00:27]} gxf5 {[%emt 0:01:17]} 30. Rce1 {[%emt 0:00:36]} e4 {[%emt 0:01:14]} 31. Qh3 {[%emt 0:01:46]} Rc8 {[%emt 0:01:41]} 32. Rc1 {[%emt 0:00:57]} Qg6 {[%emt 0:00:53]} 33. Qh4 {[%emt 0:00:29]} Rf6 {[%emt 0:00:17]} 34. Bd1 {[%emt 0:00:31]} Qg7 {[%emt 0:01:00]} 35. Bd4 {[%emt 0:00:31]} Ng8 {[%emt 0:00:45]} 36. Rxc8+ {[%emt 0:00:48]} Bxc8 {[%emt 0:00:02]} 37. Bb3 {[%emt 0:00:37]} Rh6 {[%emt 0:00:54]} 38. Bxg7 {[%emt 0:00:27]} Rxh4 {[%emt 0:00:02]} 39. Bxg8 {[%emt 0:00:17]} Rg4 {[%emt 0:00:22]} 40. Bxh7 {[%emt 0:00:00]} Rxg7 {[%emt 0:00:00]} 41. Bxf5 {[%emt 0:00:44]} Bxf5 {[%emt 0:01:36]} 42. Rxf5 {[%emt 0:00:22]} Rf7 {[%emt 0:03:31]} 43. Re5+ {[%emt 0:08:37]} Re7 {[%emt 0:00:33]} 44. Rb5 {[%emt 0:00:40]} e3 {[%emt 0:02:01]} 45. Rb1 {[%emt 0:00:08]} Re4 {[%emt 0:01:35]} 46. Re1 {[%emt 0:00:07]} Kf7 {[%emt 0:02:41]} 47. Kg1 {[%emt 0:07:25]} Kf6 {[%emt 0:07:48]} 48. Kf1 {[%emt 0:00:23]} Kf5 {[%emt 0:03:06]} 49. Ke2 {[%emt 0:00:26]} Rxa4 {[%emt 0:01:26]} 50. Kxe3 {[%emt 0:05:28]} b5 {[%emt 0:03:32]} 51. Rc1 {[%emt 0:04:58]} Rb4 {[%emt 0:01:57]} 52. Kd3 {[%emt 0:01:56]} a4 {[%emt 0:00:59]} 53. Rc5+ {[%emt 0:01:04]} Kf4 {[%emt 0:03:43]} 54. Kc3 {[%emt 0:00:10]} Rb3+ {[%emt 0:00:56]} 55. Kc2 {[%emt 0:00:02]} Ke4 {[%emt 0:00:13]} 56. Rc3 {[%emt 0:02:16]} Rb4 {[%emt 0:00:13]} 57. h4 {[%emt 0:00:35]} Rc4 {[%emt 0:01:59]} 58. h5 {[%emt 0:01:06]} Kf5 {[%emt 0:00:21]} 59. Rxc4 {[%emt 0:02:42]} bxc4 {[%emt 0:00:03]} 60. g4+ {[%emt 0:00:06]} Kg5 {[%emt 0:00:12]} 61. Kc3 {[%emt 0:00:20]} a3 {[%emt 0:00:11]} 62. Kc2 {[%emt 0:00:13]} 1/2-1/2

[Event "44th BAN-ch OMICON 2018"]
[Site "Dhaka"]
[Date "2018.11.27"]
[Round "4"]
[White "Jabed Al Azad"]
[Black "Md., Sharif Hossain"]
[Result "1/2-1/2"]
[ECO "B70"]
[WhiteElo "2008"]
[BlackElo "2198"]
[Annotator "ChessBase"]
[PlyCount "106"]
[EventDate "2018.11.24"]
[EventType "swiss"]
[EventCountry "BAN"]
[SourceTitle "playchess.com"]
[Source "ChessBase"]
[SourceQuality "1"]
[TimeControl "40/5400+30:1800+30"]

1. e4 {[%emt 1:30:30]} c5 {[%emt 1:30:30]} 2. Nf3 {[%emt 0:00:30]} d6 {[%emt 0:00:30]} 3. d4 {[%emt 0:00:30]} cxd4 {[%emt 0:00:30]} 4. Nxd4 {[%emt 0:00:30]} Nf6 {[%emt 0:00:30]} 5. Nc3 {[%emt 0:00:30]} g6 {[%emt 0:00:30]} 6. Bg5 {[%emt 0:00:30]} Bg7 {[%emt 0:00:30]} 7. Qd2 {[%emt 0:00:30]} h6 {[%emt 0:00:30]} 8. Bxf6 {[%emt 0:00:30]} Bxf6 {[%emt 0:00:30]} 9. Nd5 {[%emt 0:00:30]} Bg7 {[%emt 0:00:30]} 10. Be2 {[%emt 0:00:30]} O-O {[%emt 0:00:30]} 11. O-O {[%emt 0:00:30]} Nc6 {[%emt 0:00:30]} 12. c3 {[%emt 0:00:30]} e6 {[%emt 0:00:30]} 13. Ne3 {[%emt 0:00:30]} d5 {[%emt 0:00:30]} 14. exd5 {[%emt 0:00:30]} exd5 {[%emt 0:00:30]} 15. Bf3 {[%emt 0:00:30]} Be6 {[%emt 0:00:30]} 16. Rad1 {[%emt 0:00:30]} Nxd4 {[%emt 0:00:30]} 17. cxd4 {[%emt 0:00:30]} h5 {[%emt 0:00:30]} 18. Rc1 {[%emt 0:00:30]} Bh6 {[%emt 0:00:30]} 19. Qb4 {[%emt 0:00:30]} Bf4 {[%emt 0:00:30]} 20. g3 {[%emt 0:00:30]} Bh6 {[%emt 0:00:30]} 21. Qb3 {[%emt 0:00:30]} h4 {[%emt 0:00:30]} 22. Rce1 {[%emt 0:00:30]} Kg7 {[%emt 0:00:30]} 23. Bxd5 {[%emt 0:00:30]} Bxe3 {[%emt 0:00:30]} 24. Bxe6 {[%emt 0:00:30]} Bxd4 {[%emt 0:00:30]} 25. Bd5 {[%emt 0:00:30]} hxg3 {[%emt 0:00:30]} 26. hxg3 {[%emt 0:00:30]} Qf6 {[%emt 0:00:30]} 27. Re4 {[%emt 0:00:30]} g5 {[%emt 0:00:30]} 28. Re2 {[%emt 0:00:30]} Rad8 {[%emt 0:00:30]} 29. Qf3 {[%emt 0:00:30]} b6 {[%emt 0:00:30]} 30. Qxf6+ {[%emt 0:00:30]} Kxf6 {[%emt 0:00:30]} 31. Bf3 {[%emt 0:00:30]} Bc5 {[%emt 0:00:30]} 32. Kg2 {[%emt 0:00:30]} Rd4 {[%emt 0:00:30]} 33. Re4 {[%emt 0:00:30]} Rd2 {[%emt 0:00:30]} 34. Re2 {[%emt 0:00:30]} Rxe2 {[%emt 0:00:30]} 35. Bxe2 {[%emt 0:00:30] Re8Bf3 [%clk 0:00:00]} Kf5 {[%emt 0:00:30]} 36. Rc1 {[%emt 0:00:30]} g4 {[%emt 0:00:30]} 37. Bd1 {[%emt 0:00:30]} Rd8 {[%emt 0:00:30]} 38. Bc2+ {[%emt 0:00:30]} Kg5 {[%emt 0:00:30]} 39. Rd1 {[%emt 0:00:30]} Bd4 {[%emt 0:00:30]} 40. Bb3 {[%emt 0:00:30]} f5 {[%emt 0:00:30]} 41. Bc4 {[%emt 0:30:30]} Kf6 {[%emt 0:30:30]} 42. b3 {[%emt 0:00:30]} Ke5 {[%emt 0:00:30]} 43. Re1+ {[%emt 0:00:30]} Kd6 {[%emt 0:00:30]} 44. a4 {[%emt 0:00:30]} a5 {[%emt 0:00:30]} 45. Re6+ {[%emt 0:00:30]} Kc5 {[%emt 0:00:30]} 46. f3 {[%emt 0:00:30]} Rf8 {[%emt 0:00:30]} 47. Re7 {[%emt 0:00:30]} Kb4 {[%emt 0:00:30]} 48. Rf7 {[%emt 0:00:30]} gxf3+ {[%emt 0:00:30]} 49. Kxf3 {[%emt 0:00:30]} Re8 {[%emt 0:00:30]} 50. Rxf5 {[%emt 0:00:30]} Re3+ {[%emt 0:00:30]} 51. Kg2 {[%emt 0:00:30]} Re4 {[%emt 0:00:30]} 52. Rf4 {[%emt 0:00:30]} Rxf4 {[%emt 0:00:30]} 53. gxf4 {[%emt 0:00:30]} Kc5 {[%emt 0:00:30]} 1/2-1/2

[Event "44th BAN-ch OMICON 2018"]
[Site "Dhaka"]
[Date "2018.11.27"]
[Round "4"]
[White "Jamal Uddin"]
[Black "S M Sharon"]
[Result "0-1"]
[ECO "B06"]
[WhiteElo "1950"]
[BlackElo "2123"]
[Annotator "NA"]
[PlyCount "162"]
[EventDate "2018.11.24"]
[EventType "swiss"]
[EventCountry "BAN"]
[SourceTitle "playchess.com"]
[Source "ChessBase"]
[SourceQuality "1"]
[TimeControl "40/5400+30:1800+30"]

{[%evp 11,153,50,100,70,116,56,92,86,133,129,170,23,45,37,39,53,32767,106,32767,83,120,32767,81,93,99,85,92,86,85,72,66,51,32767,31,81,27,75,64,60,54,61,0,0,0,0,0,0,0,0,-9,0,-23,-16,-36,-17,-14,0,-9,-9,-15,0,0,-8,0,0,-9,0,8,0,-2,0,0,0,32767,0,0,0,-15,32767,-8,32767,32767,32767,-89,-77,32767,0,32767,32767,32767,32767,0,32767,32767,32767,32767,32767,32767,32767,32767,32767,32767,32767,32767,32767,32767,32767,32767,32767,32767,32767,32767,32767,-268,-300,-215,32767,32767,32767,32767,32767,32767,32767,32767,32767,32767,32767,32767,32767,32767,32767,32767,32767,32767,-324,32767,-33,-44,0,0,0,0,0,-19]} 1. d4 {[%emt 1:30:30]} d6 {[%emt 0:10:54]} 2. Nf3 {[%emt 0:00:00]} g6 {[%emt 0:00:39]} 3. e4 {[%emt 0:00:00]} Bg7 {[%emt 0:00:04]} 4. Nc3 {[%emt 0:00:00]} a6 {[%emt 0:01:53]} 5. a4 {[%emt 0:00:00]} b6 {[%emt 0:01:31]} 6. Be3 {[%emt 0:00:00] B06: Modern Defence} (6. Bc4 e6 7. O-O Ne7 8. Bf4 Nd7 9. Qd2 h6 10. Rfe1 g5 11. Bg3 Ng6 12. h3 Nf6 13. e5 Nh5 14. Bh2 Nhf4 15. exd6 cxd6 {1-0 (36) Gustafsson,J (2630)-Fier,A (2636) Linares 2015}) 6... c5 {[%emt 0:01:01]} (6... Bb7 $11) 7. a5 $146 {[%emt 0:00:00]} ({Predecessor:} 7. Bc4 Nf6 8. e5 Ng4 9. Ng5 cxd4 10. Bxf7+ Kf8 11. Bxd4 dxe5 12. Be3 Qxd1+ 13. Rxd1 e6 14. Bxb6 Nd7 15. Be3 Nb8 {1-0 (15) Goutali,T (2225)-Chavez,R (2226) Dresden 2008}) 7... Nd7 {[%emt 0:01:57]} 8. axb6 {[%emt 0:00:00]} Qxb6 {[%emt 0:00:55]} 9. Nd5 {[%emt 0:00:00]} Qb8 {[%emt 0:04:55] [#]} 10. dxc5 $1 {[%emt 0:00:00]} Nxc5 {[%emt 0:02:08]} 11. Bxc5 {[%emt 0:00:00]} (11. e5 $1 $16) 11... dxc5 {[%emt 0:00:50]} 12. Bb5+ {[%emt 0:00:00] Back Rank} Kf8 {[%emt 0:02:23]} ({Wrong is} 12... axb5 $2 13. Rxa8 Qb7 {[#]} 14. Nb6 $1 $18 {[%mdl 512]}) 13. Bc6 {[%emt 0:00:00]} Bb7 {[%emt 0:02:36]} 14. Bxb7 {[%emt 0:00:00]} Qxb7 {[%emt 0:00:42]} 15. O-O {[%emt 0:00:00]} e6 {[%emt 0:13:09]} 16. Nc3 {[%emt 0:00:00]} Bf6 {[%emt 0:01:10]} (16... Bxc3 $1 $11 17. bxc3 Qxe4) 17. e5 {[%emt 0:00:00]} Be7 {[%emt 0:00:29]} 18. b3 {[%emt 0:00:00]} h5 {[%emt 0:02:45]} 19. Qe2 {[%emt 0:00:00]} Nh6 {[%emt 0:02:12]} 20. Ra4 {[%emt 0:00:00]} Kg7 {[%emt 0:00:54]} 21. Rfa1 {[%emt 0:00:00]} Nf5 {[%emt 0:15:12]} 22. Ne4 {[%emt 0:00:00]} Rhc8 {[%emt 0:02:45]} 23. h3 {[%emt 0:00:00]} Qd5 {[%emt 0:11:36]} 24. Rd1 {[%emt 0:00:00]} Nd4 {[%emt 0:02:21]} 25. Nxd4 {[%emt 0:00:00]} cxd4 {[%emt 0:00:03]} 26. Raxd4 {[%emt 0:00:00]} (26. f4 $14) 26... Qxe5 {[%emt 0:00:37]} 27. Rd7 {[%emt 0:00:00]} Rc7 {[%emt 0:10:03]} 28. Qf3 {[%emt 0:00:00]} Raa7 {[%emt 0:00:18]} 29. Rxc7 {[%emt 0:00:00]} Rxc7 {[%emt 0:00:24]} 30. c4 {[%emt 0:00:00]} f5 {[%emt 0:01:50]} 31. Qc3 {[%emt 0:00:00]} Qxc3 {[%emt 0:00:34]} 32. Nxc3 {[%emt 0:00:00]} Bb4 {[%emt 0:00:18]} 33. Na4 {[%emt 0:00:00]} Be7 {[%emt 0:02:31]} 34. Kf1 {[%emt 0:00:00]} g5 {[%emt 0:00:24]} 35. Ke2 {[%emt 0:00:00]} g4 {[%emt 0:00:13]} 36. Rd3 {[%emt 0:00:00]} Kf6 {[%emt 0:01:14]} 37. hxg4 {[%emt 0:00:00]} hxg4 {[%emt 0:00:03]} 38. Nb6 {[%emt 0:00:00]} Bc5 {[%emt 0:03:12]} 39. Nd7+ {[%emt 0:00:00]} Ke7 {[%emt 0:00:01]} 40. Ne5 {[%emt 0:00:00]} Bb4 {[%emt 0:00:00]} 41. f3 {[%emt 0:00:00]} gxf3+ {[%emt 0:03:55]} 42. Rxf3 {[%emt 0:00:00]} Bd6 {[%emt 0:04:03]} 43. Nd3 {[%emt 0:00:00]} Kf6 {[%emt 0:03:10]} 44. Rh3 {[%emt 0:00:00]} Kg7 {[%emt 0:02:53]} 45. Kd2 {[%emt 0:00:00]} e5 {[%emt 0:01:16]} 46. Kc3 {[%emt 0:00:00]} e4 {[%emt 0:00:13]} 47. Nb4 {[%emt 0:00:00]} Bxb4+ {[%emt 0:11:55]} 48. Kxb4 {[%emt 0:00:00] [#]} Kf6 {[%emt 0:00:32]} (48... Kg6 $1 $17) 49. Rh6+ {[%emt 0:00:00]} Ke5 {[%emt 0:00:09]} 50. Rxa6 {[%emt 0:07:58]} Rg7 {[%emt 0:00:42]} 51. Ra5+ {[%emt 0:00:15]} Ke6 {[%emt 0:03:06]} 52. Ra2 {[%emt 0:00:24]} f4 {[%emt 0:00:03]} 53. Kc3 {[%emt 0:00:26]} Kf5 {[%emt 0:05:57]} 54. c5 {[%emt 0:05:12]} e3 {[%emt 0:01:22]} 55. b4 {[%emt 0:00:28]} Ke4 {[%emt 0:00:26]} 56. Kc4 {[%emt 0:01:38]} Rxg2 {[%emt 0:00:59]} 57. Rxg2 {[%emt 0:00:08]} f3 {[%emt 0:00:07]} 58. Rg8 {[%emt 0:10:19]} f2 {[%emt 0:00:39]} 59. Re8+ {[%emt 0:00:14]} Kf3 {[%emt 0:00:29]} 60. Rf8+ {[%emt 0:00:30]} Ke4 {[%emt 0:00:30]} 61. Re8+ {[%emt 0:05:27]} Kf3 {[%emt 0:00:18]} 62. Kd4 $2 {[%emt 0:13:30]} e2 {[%emt 0:00:18]} 63. Re3+ {[%emt 0:00:09]} Kf4 {[%emt 0:00:31]} 64. Rxe2 {[%emt 0:00:50]} f1=Q {[%emt 0:00:03]} 65. Re6 {[%emt 0:01:15]} Qa1+ {[%emt 0:01:04]} 66. Kd5 {[%emt 0:00:46]} Qh1+ {[%emt 0:00:41]} 67. Kd6 {[%emt 0:01:26]} Qb7 {[%emt 0:00:03]} 68. c6 {[%emt 0:00:56]} Qxb4+ {[%emt 0:00:01]} 69. Kd7 {[%emt 0:00:24]} Qb5 {[%emt 0:01:07]} 70. Ke7 {[%emt 0:00:47]} Qc4 {[%emt 0:00:48]} 71. Kd7 {[%emt 0:00:43]} Kf5 {[%emt 0:00:18]} 72. Rd6 {[%emt 0:00:32]} Qf7+ {[%emt 0:00:51]} 73. Kc8 {[%emt 0:00:09]} Qf8+ $2 {[%emt 0:00:42]} (73... Ke5 $19 74. Rd2 Qe6+ 75. Kc7 Qf7+ 76. Kb6 Qb3+ 77. Kc7 Qa4) 74. Rd8 $1 {[%emt 0:00:10]} Qf6 {[%emt 0:00:22]} 75. c7 {[%emt 0:00:12]} Qa6+ {[%emt 0:00:31]} 76. Kb8 $11 {[%emt 0:00:13]} Qb6+ {[%emt 0:00:05]} 77. Kc8 {[%emt 0:00:13]} Kf6 {[%emt 0:00:35]} 78. Rd7 {[%emt 0:01:03]} Ke6 {[%emt 0:00:45]} 79. Kd8 {[%emt 0:04:17]} Qa5 {[%emt 0:00:30]} 80. Re7+ {[%emt 0:02:16]} Kd6 {[%emt 0:00:18]} 81. Rh7 {[%emt 0:00:38]} Qg5+ {[%emt 0:00:31] Rg7 [%clk 0:00:00] Qa5Rd7+ [%clk 0:00:00] Ke5Kc8 [%clk 0:00:00] Qc5 [%clk 0:00:00] Rf7 [%clk 0:00:00] Kf6 [%clk 0:00:00] Rd7 [%clk 0:00:00] Ke6*} 0-1